bitfinex-derivatives/quotes_BTCF0:USTF0_20250309
["timestamp","ask_amount","ask_price","bid_price","bid_amount"]
[1741489480272,0.1320856,85993.0,85992.0,0.0933764]
[1741489481575,0.1320856,85993.0,85992.0,0.02359]
[1741489489682,0.13673027,85993.0,85992.0,0.02359]
[1741489490580,0.13673027,85993.0,85992.0,0.0933764]
[1741489491182,0.13673027,85993.0,85992.0,0.1244764]
[1741489491684,0.13673027,85993.0,85992.0,0.0933764]
[1741489491886,0.00464467,85993.0,85992.0,0.0933764]
[1741489492982,0.13868131,86000.0,85999.0,0.0697808]
[1741489493187,0.13868131,86000.0,85999.0,0.4305808]
[1741489494091,0.17178131,86000.0,85999.0,0.4305808]
[1741489494287,0.0331,86000.0,85999.0,0.4305808]
[1741489494493,0.0331,86000.0,85999.0,0.4636808]
[1741489494683,0.0331,86000.0,85999.0,0.4965808]
[1741489495888,0.10288,86000.0,85999.0,0.4965808]
[1741489496189,0.0331,86000.0,85999.0,0.4965808]
[1741489499396,0.0348884,86004.0,86001.0,0.0697791]
[1741489499690,0.0348884,86004.0,86003.0,0.0697775]
[1741489499892,0.13885567,86009.0,86007.0,0.0697743]
[1741489500096,0.07151845,86008.0,86007.0,0.0697743]
[1741489500395,0.03214495,86008.0,86007.0,0.0697743]
[1741489500592,0.03214495,86008.0,86007.0,0.1650743]
[1741489500989,0.00174495,86008.0,86007.0,0.1650743]
[1741489501295,0.13885567,86009.0,86008.0,0.0697735]
[1741489501496,0.13885567,86009.0,86008.0,0.08332003]
[1741489501697,0.00017436,86009.0,86008.0,0.14752003]
[1741489502401,0.00017436,86009.0,86008.0,0.1339735]
[1741489507198,0.06994696,86009.0,86008.0,0.1339735]
[1741489508613,0.00017436,86009.0,86008.0,0.1339735]
[1741489510298,0.00017436,86009.0,86008.0,0.4947735]
[1741489511202,0.00017436,86009.0,86008.0,0.1339735]
[1741489511402,0.00017436,86009.0,86008.0,0.4947735]
[1741489512309,0.00017436,86009.0,86008.0,0.5736135]
[1741489515310,0.1046386,86028.0,86027.0,0.1046339]
[1741489516012,0.1359386,86028.0,86027.0,0.1046339]
[1741489516515,0.2004386,86028.0,86027.0,0.1046339]
[1741489518211,0.2004386,86028.0,86027.0,0.1366339]
[1741489518413,0.21322425,86028.0,86027.0,0.1366339]
[1741489519810,0.0642,86028.0,86027.0,0.17649997]
[1741489521014,0.0642,86028.0,86027.0,0.18979981]
[1741489521413,0.0313,86028.0,86027.0,0.18979981]
[1741489521610,0.0308,86033.0,86032.0,0.069754]
[1741489521810,0.13885567,86036.0,86034.0,0.0697524]
[1741489521811,0.0313,86035.0,86034.0,0.0697524]
[1741489522108,0.1010516,86035.0,86034.0,0.1483124]
[1741489522309,0.1646516,86035.0,86034.0,0.0697524]
[1741489522706,0.17743734,86035.0,86034.0,0.0697524]
[1741489523912,0.1646516,86035.0,86034.0,0.0697524]
[1741489534612,0.1646516,86035.0,86034.0,0.1343524]
[1741489542024,0.1646516,86035.0,86033.0,0.02357]
[1741489542025,0.4557,86035.0,86033.0,0.02357]
[1741489542324,0.0697524,86034.0,86033.0,0.02357]
[1741489542719,0.1319524,86034.0,86033.0,0.02357]
[1741489543115,0.13657198,86034.0,86033.0,0.02357]
[1741489544829,0.0697572,86028.0,86027.0,0.18284274]
[1741489545125,0.4305572,86028.0,86027.0,0.15807061]
[1741489545523,0.4936572,86028.0,86027.0,0.15807061]
[1741489545832,0.49827678,86028.0,86027.0,0.15807061]
[1741489547831,0.069758,86027.0,86026.0,0.05793]
[1741489548023,0.0697605,86024.0,86023.0,0.96175273]
[1741489548216,0.4305605,86024.0,86023.0,0.96071273]
[1741489548421,0.5805605,86024.0,86023.0,0.96071273]
[1741489548916,0.58518008,86024.0,86023.0,0.94731273]
[1741489549117,0.65048008,86024.0,86023.0,0.92131273]
[1741489550131,0.65817632,86024.0,86023.0,0.92131273]
[1741489551937,0.0697637,86020.0,86015.0,1.00104]
[1741489552833,0.1335637,86020.0,86015.0,1.00104]
[1741489553028,0.14587952,86020.0,86015.0,1.00104]
[1741489553930,0.14487952,86020.0,86015.0,1.00104]
[1741489554434,0.29487952,86020.0,86017.0,0.01827]
[1741489554625,0.30187952,86020.0,86019.0,0.00117436]
[1741489555623,0.30187952,86020.0,85997.0,0.0626]
[1741489555624,0.0697718,86010.0,85997.0,0.0626]
[1741489555820,0.5082918,86010.0,85997.0,0.0626]
[1741489556229,0.51291138,86010.0,85997.0,0.0626]
[1741489556430,0.57791138,86010.0,85997.0,0.0626]
[1741489556833,0.0697816,85998.0,85997.0,0.0626]
[1741489557725,0.1347816,85998.0,85997.0,0.0626]
[1741489558431,0.17932113,85998.0,85997.0,0.0626]
[1741489560637,0.17932113,85998.0,85997.0,0.032]
[1741489560834,0.0697905,85987.0,85977.0,0.0348993]
[1741489561149,0.0697905,85987.0,85986.0,1.0697913]
[1741489561341,0.0697905,85987.0,85986.0,1.0]
[1741489561529,0.0697905,85987.0,85986.0,1.032]
[1741489562142,0.0697905,85987.0,85986.0,1.036]
[1741489562641,0.1020905,85987.0,85986.0,1.0661]
[1741489563239,0.1338905,85987.0,85986.0,1.0661]
[1741489564435,0.004,85987.0,85986.0,1.1318913]
[1741489564639,0.0737905,85987.0,85986.0,1.1318913]
[1741489565344,0.0737905,85987.0,85986.0,1.0621]
[1741489566131,0.1376905,85987.0,85986.0,1.0621]
[1741489566828,0.0717905,85987.0,85986.0,1.0621]
[1741489567735,0.1027905,85987.0,85986.0,1.1318913]
[1741489567945,0.1057905,85987.0,85986.0,1.0621]
[1741489568435,0.1067905,85987.0,85986.0,1.0621]
[1741489568842,0.0737905,85987.0,85986.0,1.1318913]
[1741489570535,0.0737905,85987.0,85986.0,1.0621]
[1741489571545,0.07899919,85987.0,85986.0,1.0621]
[1741489573148,0.07899919,85987.0,85986.0,1.1318913]
[1741489573541,0.07899919,85987.0,85986.0,1.0621]
[1741489574642,0.07899919,85987.0,85986.0,1.1318913]
[1741489574945,0.07899919,85987.0,85986.0,1.0621]
[1741489575146,0.07899919,85987.0,85986.0,1.1318913]
[1741489575546,0.08732615,85987.0,85986.0,1.1318913]
[1741489575952,0.08732615,85987.0,85986.0,1.0621]
[1741489577748,0.07899919,85987.0,85986.0,1.0621]
[1741489578844,0.11169919,85987.0,85986.0,1.0621]
[1741489579737,0.11970264,85987.0,85986.0,1.0621]
[1741489580041,0.11970264,85987.0,85986.0,1.1318913]
[1741489580248,0.08700264,85987.0,85986.0,1.1318913]
[1741489580839,0.08700264,85987.0,85986.0,1.0621]
[1741489581240,0.11700264,85987.0,85986.0,1.0621]
[1741489582638,0.08700264,85987.0,85986.0,1.4926913]
[1741489583245,0.07899919,85987.0,85986.0,1.4926913]
[1741489584747,0.00920869,85987.0,85986.0,1.4926913]
[1741489584945,0.13816994,85991.0,85990.0,0.0697881]
[1741489585143,0.20795724,85991.0,85990.0,0.0697881]
[1741489585745,0.20795724,85991.0,85990.0,0.1311881]
[1741489587158,0.21195724,85991.0,85990.0,0.1311881]
[1741489588454,0.21195724,85991.0,85990.0,0.4919881]
[1741489588758,0.0737873,85991.0,85990.0,0.4919881]
[1741489589254,0.0737873,85991.0,85990.0,0.1311881]
[1741489589453,0.0737873,85991.0,85990.0,0.4919881]
[1741489589855,0.0737873,85991.0,85990.0,0.1311881]
[1741489590157,0.004,85991.0,85990.0,0.4919881]
[1741489592258,0.004,85991.0,85990.0,0.5697081]
[1741489595156,0.0737873,85991.0,85990.0,0.5697081]
[1741489598350,0.0737873,85991.0,85990.0,0.6697081]
[1741489598960,0.0737873,85991.0,85990.0,0.5919881]
[1741489599160,0.0737873,85991.0,85990.0,0.4919881]
[1741489606361,0.004,85991.0,85990.0,0.4919881]
[1741489607659,0.004,85991.0,85990.0,0.5919881]
[1741489607966,0.1355873,85991.0,85990.0,0.5919881]
[1741489608363,0.004,85991.0,85990.0,0.5919881]
[1741489610361,0.00017436,85995.0,85990.0,0.5222]
[1741489610666,0.00017436,85995.0,85994.0,0.0697848]
[1741489611258,0.00017436,85995.0,85994.0,0.08284247]
[1741489611457,0.0348849,86013.0,86002.0,0.0697783]
[1741489611661,0.0627,86005.0,86002.0,0.5305783]
[1741489611865,0.17380732,86003.0,86002.0,0.5305783]
[1741489612465,0.17380732,86003.0,86002.0,0.5949783]
[1741489613169,0.08287094,86003.0,86002.0,0.5949783]
[1741489613971,0.08287094,86003.0,86002.0,0.5959783]
[1741489614972,0.08287094,86003.0,86002.0,0.4959783]
[1741489615972,0.08287094,86003.0,86002.0,0.4631783]
[1741489621078,0.0697775,86003.0,86002.0,0.4631783]
[1741489621873,0.0627,86005.0,86004.0,0.0697767]
[1741489622081,0.10402982,86006.0,86004.0,0.1697767]
[1741489622277,0.10402982,86006.0,86005.0,0.0697759]
[1741489622477,0.10402982,86006.0,86005.0,0.1330759]
[1741489623075,0.10402982,86006.0,86005.0,0.14589636]
[1741489623683,0.20770177,86020.0,86005.0,0.83041776]
[1741489623871,0.20770177,86020.0,86014.0,0.4305686]
[1741489624075,0.20770177,86020.0,86014.0,0.6076886]
[1741489624377,0.20770177,86020.0,86014.0,0.65552477]
[1741489624775,0.20770177,86020.0,86019.0,0.0697645]
[1741489624975,0.20770177,86020.0,86019.0,0.1697645]
[1741489625672,0.20770177,86020.0,86019.0,0.2344645]
[1741489626375,0.20770177,86020.0,86019.0,0.4779618]
[1741489627374,0.21070177,86020.0,86019.0,0.4789618]
[1741489627881,0.003,86020.0,86019.0,0.4789618]
[1741489628781,0.0664754,86036.0,86033.0,0.0697532]
[1741489628981,0.0318,86035.0,86033.0,0.0697532]
[1741489629480,0.0318,86035.0,86034.0,0.0697524]
[1741489629681,0.11448669,86046.0,86045.0,0.0697435]
[1741489630271,0.1017434,86046.0,86045.0,0.0697435]
[1741489630671,0.1017434,86046.0,86045.0,0.1023435]
[1741489631577,0.1027434,86046.0,86045.0,0.1033435]
[1741489632485,0.1356434,86046.0,86045.0,0.1033435]
[1741489632884,0.001,86046.0,86045.0,0.1802635]
[1741489633188,0.0707426,86046.0,86045.0,0.2802635]
[1741489633577,0.0707426,86046.0,86045.0,0.17792]
[1741489634383,0.0707426,86046.0,86045.0,0.2476635]
[1741489634778,0.1037426,86046.0,86045.0,0.2476635]
[1741489635188,0.1037426,86046.0,86045.0,0.2466635]
[1741489637890,0.1027426,86046.0,86045.0,0.2466635]
[1741489638183,0.1037426,86046.0,86045.0,0.2466635]
[1741489640588,0.1037426,86046.0,86045.0,0.2778635]
[1741489641493,0.1037426,86046.0,86045.0,0.2009435]
[1741489642981,0.1037426,86046.0,86042.0,0.3608]
[1741489643186,0.0697451,86044.0,86043.0,0.0697449]
[1741489643692,0.1339451,86044.0,86043.0,0.0697449]
[1741489644292,0.1349451,86044.0,86043.0,0.0697449]
[1741489645195,0.1349451,86044.0,86043.0,0.1010449]
[1741489646492,0.1349451,86044.0,86043.0,0.0313]
[1741489646889,0.1349451,86044.0,86043.0,0.0697451]
[1741489648295,0.1349451,86044.0,86043.0,0.1327451]
[1741489651693,0.0652,86044.0,86043.0,0.1327451]
[1741489651895,0.0642,86044.0,86043.0,0.2327451]
[1741489652299,0.3608,86075.0,86055.0,0.50651704]
[1741489652498,0.0697337,86057.0,86056.0,0.0329]
[1741489653004,0.0697337,86057.0,86056.0,0.1331345]
[1741489653505,0.07439702,86057.0,86056.0,0.1331345]
[1741489654508,0.07539702,86057.0,86056.0,0.0634]
[1741489654997,0.08786295,86057.0,86056.0,0.0634]
[1741489655504,0.08786295,86057.0,86056.0,0.1331345]
[1741489656098,0.15186295,86057.0,86056.0,0.1331345]
[1741489657211,0.39583826,86065.0,86062.0,0.71264045]
[1741489657398,0.24299741,86064.0,86063.0,0.0646]
[1741489657702,0.25560624,86064.0,86063.0,0.0646]
[1741489658507,0.25660624,86064.0,86063.0,0.0646]
[1741489660000,0.25560624,86064.0,86063.0,0.0646]
[1741489660309,0.13885127,86064.0,86063.0,0.0646]
[1741489660513,0.23295127,86064.0,86063.0,0.0646]
[1741489660703,0.20205127,86064.0,86063.0,0.0646]
[1741489662105,0.20205127,86064.0,86063.0,0.1343289]
[1741489662702,0.17165127,86064.0,86063.0,0.1343289]
[1741489662903,0.13885127,86064.0,86063.0,0.1343289]
[1741489663208,0.05651434,86064.0,86063.0,0.2343289]
[1741489663811,0.20770177,86067.0,86063.0,0.2343289]
[1741489663812,0.16459047,86067.0,86063.0,0.42090544]
[1741489664011,0.31287105,86087.0,86076.0,0.0697183]
[1741489664211,0.1967764,86082.0,86081.0,0.7913143]
[1741489664515,0.07890245,86108.0,86092.0,0.1163]
[1741489664706,0.27095848,86128.0,86127.0,0.0696771]
[1741489664910,0.46633805,86139.0,86138.0,0.0696682]
[1741489665206,0.10144,86173.0,86138.0,0.0696682]
[1741489665207,0.32967772,86159.0,86158.0,0.069652]
[1741489665403,0.22602761,86159.0,86158.0,1.0884966]
[1741489665607,0.16864761,86159.0,86158.0,1.0676693]
[1741489666508,0.23829881,86159.0,86158.0,0.9980173]
[1741489666910,0.23829881,86159.0,86158.0,0.8980173]
[1741489667107,0.23829881,86159.0,86158.0,0.3608]
[1741489667303,0.52944761,86159.0,86150.0,0.00017415]
[1741489667501,0.0696576,86151.0,86150.0,0.00017415]
[1741489671013,0.0981576,86151.0,86150.0,0.00017415]
[1741489671211,0.0696625,86145.0,86144.0,0.29386467]
[1741489671514,0.0696625,86145.0,86144.0,0.19406467]
[1741489671515,0.4304625,86145.0,86144.0,0.19406467]
[1741489671713,0.44300835,86145.0,86144.0,0.09426467]
[1741489671914,0.59300835,86145.0,86144.0,0.04436467]
[1741489672709,0.0696649,86142.0,86141.0,0.27443612]
[1741489672917,0.4304649,86142.0,86141.0,0.27443612]
[1741489673721,0.4294649,86142.0,86141.0,0.27443612]
[1741489674610,0.4294649,86142.0,86141.0,0.27543612]
[1741489675302,0.4599649,86142.0,86141.0,0.27543612]
[1741489675507,0.4928649,86142.0,86141.0,0.27543612]
[1741489676816,0.069669,86137.0,86136.0,0.00017415]
[1741489677419,0.133069,86137.0,86136.0,0.00017415]
[1741489677715,0.132069,86137.0,86136.0,0.00017415]
[1741489678118,0.133069,86137.0,86136.0,0.00117415]
[1741489678811,0.077,86139.0,86136.0,0.00117415]
[1741489679016,0.069669,86137.0,86136.0,0.00117415]
[1741489681511,0.1117528,86141.0,86136.0,0.00117415]
[1741489682023,0.0627,86140.0,86136.0,0.00117415]
[1741489682409,0.071669,86137.0,86136.0,0.00117415]
[1741489683411,0.071669,86137.0,86136.0,0.07084395]
[1741489683412,0.002,86137.0,86136.0,0.07084395]
[1741489683715,0.071669,86137.0,86136.0,0.43164395]
[1741489683919,0.069669,86137.0,86136.0,0.46094395]
[1741489684216,0.00190832,86142.0,86136.0,0.46194395]
[1741489684415,0.069669,86140.0,86139.0,0.1044964]
[1741489684617,0.069669,86140.0,86139.0,0.1741601]
[1741489684816,0.069669,86140.0,86137.0,0.077]
[1741489684817,0.0696682,86138.0,86137.0,0.077]
[1741489685017,0.0696682,86138.0,86137.0,0.1073]
[1741489685316,0.069669,86137.0,86136.0,0.36097415]
[1741489685522,0.100769,86137.0,86136.0,0.36097415]
[1741489686222,0.100769,86137.0,86120.0,0.0348412]
[1741489686223,0.0696843,86118.0,86113.0,0.18846029]
[1741489686522,0.0696989,86100.0,86099.0,0.59687536]
[1741489686709,0.5080189,86100.0,86099.0,0.59687536]
[1741489687110,0.6580189,86100.0,86099.0,0.50935206]
[1741489687317,0.0697046,86093.0,86092.0,0.37314778]
[1741489687517,0.4305046,86093.0,86092.0,0.37314778]
[1741489687716,0.5805046,86093.0,86092.0,0.37314778]
[1741489688216,0.5795046,86093.0,86092.0,0.37314778]
[1741489688922,0.5795046,86093.0,86092.0,0.37414778]
[1741489689718,0.6104046,86093.0,86092.0,0.37414778]
[1741489690116,0.4604046,86093.0,86092.0,0.37414778]
[1741489690315,0.4295046,86093.0,86092.0,0.44385318]
[1741489690524,0.0687046,86093.0,86092.0,0.44385318]
[1741489691019,0.0687046,86093.0,86092.0,0.44285318]
[1741489691213,0.0707046,86093.0,86092.0,0.001]
[1741489691609,0.05052554,86094.0,86091.0,0.00017415]
[1741489691815,0.0697054,86092.0,86091.0,0.00017415]
[1741489694623,0.0707054,86092.0,86091.0,0.00017415]
[1741489697434,0.0707054,86092.0,86091.0,0.03077415]
[1741489698831,0.0707054,86092.0,86091.0,0.10048035]
[1741489699028,0.0707054,86092.0,86091.0,0.03077415]
[1741489703533,0.07529154,86092.0,86091.0,0.03077415]
[1741489703745,0.0697191,86075.0,86074.0,0.0313]
[1741489704636,0.0697191,86075.0,86074.0,0.0637]
[1741489705240,0.0697191,86075.0,86074.0,0.13342]
[1741489705827,0.0697191,86075.0,86074.0,0.0637]
[1741489706439,0.0697191,86075.0,86074.0,0.07254146]
[1741489706832,0.0697191,86075.0,86074.0,0.14226146]
[1741489708440,0.0697191,86075.0,86074.0,0.17256146]
[1741489711643,0.0697191,86075.0,86074.0,0.10284146]
[1741489711939,0.0697191,86075.0,86074.0,0.17256146]
[1741489716945,0.0697187,86076.0,86075.0,0.0697175]
[1741489717142,0.0697187,86076.0,86075.0,0.0645]
[1741489718347,0.07438108,86076.0,86075.0,0.0645]
[1741489719541,0.07438108,86076.0,86075.0,0.80051919]
[1741489722542,0.10668108,86076.0,86075.0,0.80051919]
[1741489723146,0.10668108,86076.0,86075.0,0.0645]
[1741489728742,0.10668108,86076.0,86075.0,0.0319]
[1741489730057,0.0697191,86075.0,86074.0,0.346037]
[1741489730257,0.0981191,86075.0,86074.0,0.346037]
[1741489730955,0.10278148,86075.0,86074.0,0.346037]
[1741489731457,0.03306238,86075.0,86069.0,0.0303]
[1741489731657,0.0697232,86070.0,86069.0,0.0303]
[1741489732361,0.07438558,86070.0,86069.0,0.0303]
[1741489732660,0.07438558,86070.0,86069.0,0.0313]
[1741489734059,0.10698558,86070.0,86069.0,0.0313]
[1741489734757,0.10698558,86070.0,86069.0,0.0303]
[1741489734958,0.10698558,86070.0,86069.0,0.0313]
[1741489735349,0.10698558,86070.0,86069.0,0.0303]
[1741489735549,0.10798558,86070.0,86069.0,0.0313]
[1741489735955,0.10698558,86070.0,86069.0,0.0303]
[1741489736158,0.10798558,86070.0,86069.0,0.001]
[1741489736950,0.0697248,86068.0,86067.0,0.0326]
[1741489737252,0.07438718,86068.0,86067.0,0.0326]
[1741489737456,0.43518718,86068.0,86067.0,0.0326]
[1741489737659,0.46768718,86068.0,86067.0,0.0326]
[1741489738146,0.46868718,86068.0,86067.0,0.0336]
[1741489738749,0.46868718,86068.0,86067.0,0.0636]
[1741489739162,0.46868718,86068.0,86067.0,0.0336]
[1741489741156,0.46968718,86068.0,86067.0,0.0336]
[1741489741657,0.46968718,86068.0,86067.0,0.0326]
[1741489741863,0.46968718,86068.0,86067.0,0.0336]
[1741489742962,0.0697305,86061.0,86060.0,0.03]
[1741489743458,0.07439288,86061.0,86060.0,0.03]
[1741489743863,0.10269288,86061.0,86060.0,0.03]
[1741489744058,0.13479288,86061.0,86060.0,0.03]
[1741489744951,0.13679288,86061.0,86060.0,0.03]
[1741489745352,0.14444856,86061.0,86060.0,0.03]
[1741489745658,0.50524856,86061.0,86060.0,0.03]
[1741489745861,0.52129292,86061.0,86060.0,0.03]
[1741489747557,0.51363724,86061.0,86060.0,0.03]
[1741489748468,0.45323724,86061.0,86060.0,0.03]
[1741489749164,0.45323724,86061.0,86060.0,0.0605]
[1741489750771,0.09243724,86061.0,86060.0,0.0605]
[1741489753968,0.09243724,86061.0,86060.0,0.1302313]
[1741489754270,0.09243724,86061.0,86060.0,0.0605]
[1741489755467,0.09043724,86061.0,86060.0,0.0605]
[1741489755679,0.09243724,86061.0,86060.0,0.0605]
[1741489757865,0.09043724,86061.0,86060.0,0.0605]
[1741489758070,0.09243724,86061.0,86060.0,0.0605]
[1741489758468,0.09043724,86061.0,86060.0,0.0605]
[1741489758784,0.09243724,86061.0,86060.0,0.4910313]
[1741489760978,0.09043724,86061.0,86060.0,0.4910313]
[1741489761182,0.09243724,86061.0,86060.0,0.4910313]
[1741489761574,0.02070674,86061.0,86060.0,0.4910313]
[1741489761780,0.00666238,86061.0,86060.0,0.4910313]
[1741489762077,0.00666238,86061.0,86060.0,0.5683913]
[1741489762279,0.002,86061.0,86060.0,0.5683913]
[1741489762682,0.0348633,86066.0,86060.0,0.49866]
[1741489762876,0.002,86061.0,86060.0,0.5683913]
[1741489763682,0.002,86061.0,86060.0,0.6683913]
[1741489764385,0.0697257,86067.0,86060.0,0.59966]
[1741489764580,0.0697257,86067.0,86066.0,0.0697264]
[1741489765478,0.0697257,86067.0,86066.0,0.1327264]
[1741489766293,0.0697257,86067.0,86066.0,0.063]
[1741489768082,0.07441165,86067.0,86066.0,0.063]
[1741489768584,0.07641165,86067.0,86066.0,0.063]
[1741489768981,0.10931165,86067.0,86066.0,0.063]
[1741489770475,0.07641165,86067.0,86066.0,0.0323]
[1741489770676,0.07641165,86067.0,86066.0,0.0637]
[1741489770876,0.07641165,86067.0,86066.0,0.1334264]
[1741489771682,0.07641165,86067.0,86066.0,0.0637]
[1741489772684,0.07641165,86067.0,86066.0,0.1334264]
[1741489772987,0.07641165,86067.0,86066.0,0.0637]
[1741489775383,0.07641165,86067.0,86066.0,0.1334264]
[1741489775586,0.10382933,86073.0,86072.0,0.0697216]
[1741489775888,0.10382933,86073.0,86072.0,0.4305216]
[1741489776277,0.17355013,86073.0,86072.0,0.4305216]
[1741489776476,0.17355013,86073.0,86072.0,0.4944216]
[1741489776887,0.0697208,86073.0,86072.0,0.4944216]
[1741489777588,0.17354973,86075.0,86074.0,0.06972]
[1741489779294,0.10382933,86075.0,86074.0,0.06972]
[1741489780991,0.0697188,86076.0,86075.0,0.0697191]
[1741489781292,0.0697188,86076.0,86075.0,0.1308191]
[1741489781980,0.0697188,86076.0,86075.0,0.4916191]
[1741489782186,0.0017435,86087.0,86079.0,0.0348576]
[1741489782482,0.0017435,86087.0,86086.0,0.4305102]
[1741489782989,0.0017435,86087.0,86086.0,0.4916102]
[1741489783689,0.10382933,86094.0,86093.0,0.0697046]
[1741489783992,0.10382933,86094.0,86093.0,0.4305046]
[1741489784482,0.10382933,86094.0,86093.0,0.5241046]
[1741489785492,0.06987727,86095.0,86094.0,0.0697038]
[1741489785684,0.06987727,86095.0,86094.0,0.1318038]
[1741489785896,0.00017427,86095.0,86094.0,0.1318038]
[1741489786590,0.00017427,86095.0,86094.0,0.4926038]
[1741489787489,0.06987727,86095.0,86094.0,0.4239]
[1741489787682,0.10277727,86095.0,86094.0,0.001]
[1741489788388,0.10747722,86095.0,86094.0,0.001]
[1741489788591,0.0697127,86084.0,86082.0,0.0325]
[1741489788794,0.00487422,86095.0,86083.0,0.6042973]
[1741489789098,0.00017427,86095.0,86094.0,0.0697038]
[1741489789398,0.00017427,86095.0,86094.0,0.1638038]
[1741489790396,0.00117427,86095.0,86094.0,0.1638038]
[1741489791093,0.00017427,86095.0,86094.0,0.1648038]
[1741489793492,0.06987727,86095.0,86094.0,0.1648038]
[1741489794393,0.06987727,86095.0,86094.0,0.1638038]
[1741489794697,0.13347727,86095.0,86094.0,0.1648038]
[1741489795089,0.13447727,86095.0,86094.0,0.1638038]
[1741489795492,0.0696877,86114.0,86094.0,0.1638038]
[1741489795697,0.032,86118.0,86112.0,0.0696892]
[1741489795891,0.4304884,86113.0,86112.0,0.0696892]
[1741489796796,0.06969,86111.0,86110.0,0.1634903]
[1741489796995,0.06969,86111.0,86110.0,0.1332903]
[1741489797500,0.10099,86111.0,86110.0,0.1332903]
[1741489798192,0.10199,86111.0,86110.0,0.1332903]
[1741489798793,0.001,86111.0,86110.0,0.1332903]
[1741489798992,0.07069,86111.0,86110.0,0.1332903]
[1741489799894,0.07069,86111.0,86110.0,0.14185659]
[1741489800603,0.06969,86111.0,86110.0,0.14185659]
[1741489801099,0.034843,86116.0,86115.0,0.1045269]
[1741489801601,0.1045314,86116.0,86115.0,0.1045269]
[1741489802188,0.00174279,86119.0,86118.0,0.0696843]
[1741489802402,0.00174279,86119.0,86118.0,0.4304843]
[1741489802601,0.00174279,86119.0,86118.0,0.4946843]
[1741489803501,0.00174279,86119.0,86118.0,0.5946843]
[1741489804101,0.10382933,86134.0,86133.0,0.0696722]
[1741489804299,0.10382933,86134.0,86133.0,0.4304722]
[1741489805398,0.17450073,86134.0,86133.0,0.4314722]
[1741489805599,0.0706714,86134.0,86133.0,0.4314722]
[1741489806107,0.001,86134.0,86133.0,0.4314722]
[1741489806495,0.001,86134.0,86133.0,0.5314722]
[1741489808907,0.17149439,86161.0,86137.0,0.0348341]
[1741489809096,0.17149439,86161.0,86150.0,0.4304585]
[1741489809296,0.0328,86160.0,86150.0,0.6078185]
[1741489809802,0.0676253,86160.0,86150.0,0.6078185]
[1741489809994,0.0696544,86155.0,86151.0,0.0696576]
[1741489810194,0.06982535,86159.0,86158.0,0.069652]
[1741489810394,0.10262535,86159.0,86158.0,0.430452]
[1741489810795,0.10262535,86159.0,86158.0,0.3608]
[1741489810998,0.0696536,86156.0,86155.0,0.3933]
[1741489811704,0.0686536,86156.0,86155.0,0.3933]
[1741489812296,0.0686536,86156.0,86155.0,0.3608]
[1741489812496,0.0661263,86158.0,86151.0,0.0319]
[1741489812697,0.0696568,86152.0,86151.0,0.0319]
[1741489813100,0.0696568,86152.0,86151.0,0.1015576]
[1741489813308,0.0686568,86152.0,86151.0,0.1346576]
[1741489813806,0.0686568,86152.0,86147.0,0.00168]
[1741489813807,0.0696601,86148.0,86147.0,0.00168]
[1741489814019,0.0696633,86144.0,86140.0,0.0319]
[1741489814304,0.0696633,86144.0,86142.0,0.0696645]
[1741489814511,0.0696633,86144.0,86143.0,0.03217415]
[1741489814906,0.1334633,86144.0,86143.0,0.03217415]
[1741489815108,0.1334633,86144.0,86143.0,0.00017415]
[1741489815407,0.0696633,86144.0,86143.0,0.00017415]
[1741489815600,0.0329,86153.0,86151.0,0.0696576]
[1741489815801,0.105486,86152.0,86151.0,0.0696576]
[1741489816318,0.104486,86152.0,86151.0,0.1342576]
[1741489817004,0.136386,86152.0,86151.0,0.1342576]
[1741489822205,0.3608,86181.0,86151.0,0.3080973]
[1741489822399,0.1044617,86175.0,86174.0,0.0696353]
[1741489822813,0.0696391,86174.0,86173.0,0.1333391]
[1741489823013,0.1370391,86174.0,86173.0,0.1333391]
[1741489823515,0.1360391,86174.0,86173.0,0.1333391]
[1741489824006,0.14152463,86174.0,86173.0,0.1343391]
[1741489824206,0.10712463,86174.0,86173.0,0.1343391]
[1741489824406,0.14012463,86174.0,86173.0,0.0647]
[1741489824606,0.14012463,86174.0,86173.0,0.1343399]
[1741489826514,0.14012463,86174.0,86173.0,0.0647]
[1741489826717,0.14012463,86174.0,86173.0,0.001]
[1741489827613,0.14012463,86174.0,86173.0,0.00949954]
[1741489827814,0.14012463,86174.0,86173.0,0.001]
[1741489828613,0.1356391,86174.0,86173.0,0.0355]
[1741489828822,0.001,86174.0,86173.0,0.1136499]
[1741489829011,0.001,86174.0,86173.0,0.1481499]
[1741489830516,0.0696344,86180.0,86179.0,0.0696342]
[1741489830916,0.00011437,86182.0,86181.0,0.0696334]
[1741489831815,0.06974697,86182.0,86181.0,0.0696334]
[1741489832320,0.00111437,86182.0,86181.0,0.0706334]
[1741489832523,0.07074697,86182.0,86181.0,0.0706334]
[1741489832721,0.00111437,86182.0,86181.0,0.0706334]
[1741489835121,0.07074697,86182.0,86181.0,0.0706334]
[1741489835626,0.4608,86200.0,86196.0,0.1044288]
[1741489835918,0.1044307,86197.0,86196.0,0.1044288]
[1741489836122,0.11855516,86197.0,86196.0,0.1044288]
[1741489836324,0.11855516,86197.0,86191.0,0.07744]
[1741489836325,0.0696245,86192.0,86191.0,0.07744]
[1741489837724,0.0686245,86192.0,86191.0,0.07744]
[1741489838022,0.0696261,86190.0,86189.0,0.3608]
[1741489838411,0.0686261,86190.0,86189.0,0.4304269]
[1741489838721,0.14064294,86190.0,86189.0,0.4304269]
[1741489840627,0.10804294,86190.0,86189.0,0.0706269]
[1741489844617,0.10804294,86190.0,86189.0,0.1035269]
[1741489845020,0.10804294,86190.0,86189.0,0.1381269]
[1741489846523,0.10804294,86190.0,86189.0,0.001]
[1741489847132,0.14074294,86190.0,86189.0,0.001]
[1741489847635,0.0696326,86182.0,86181.0,0.18693323]
[1741489847930,0.4304326,86182.0,86181.0,0.18693323]
[1741489848122,0.43494944,86182.0,86181.0,0.18693323]
[1741489848519,0.58494944,86182.0,86181.0,0.18693323]
[1741489848718,0.2186366,86177.0,86176.0,0.01920229]
[1741489848921,0.0696415,86171.0,86170.0,0.32700885]
[1741489849122,0.1468015,86171.0,86170.0,0.32700885]
[1741489849929,0.2165015,86171.0,86170.0,0.32700885]
[1741489850222,0.22101834,86171.0,86170.0,0.32700885]
[1741489851034,0.22001834,86171.0,86170.0,0.32700885]
[1741489851232,0.22001834,86171.0,86163.0,0.00174073]
[1741489851431,0.0696471,86164.0,86163.0,0.00174073]
[1741489851625,0.0686471,86164.0,86163.0,0.00174073]
[1741489852025,0.07316394,86164.0,86163.0,0.00174073]
[1741489852227,0.15490513,86164.0,86163.0,0.00174073]
[1741489852721,0.0696479,86163.0,86162.0,0.00017405]
[1741489852925,0.1385479,86163.0,86162.0,0.00017405]